Workbook

Sheet паспорт
A1: ПАТ "УКРТРАНСГАЗ" | G1: ПАСПОРТ ФІЗИКО-ХІМІЧНИХ ПОКАЗНИКІВ ПРИРОДНОГО ГАЗУ № 51
A2: Філія "УМГ "Київтрансгаз" | G2: переданого Лубенським ЛВУМГ та прийнятого ПАТ "Лубнигаз", ДП "Укравтогаз", ПП Костюк В.М.
A3: Лубенський п/м Лубенське ЛВУМГ | G3: Маршрут № 51
A4: Вимірювальна хіміко-аналітична лабораторія
A5: Свідоцтво № 199-15 чинно до 31.12.2018 р. | K5: по газопроводу " Шебелинка-Полтава-Київ " | V5: за період з | X5: 2017-05-01 | Z5: по | AA5: 2017-05-31
A7: Число місяця | B7: Компонентний склад, % мол. | N7: Фізико-хімічні показники газу обчислені на основі компонентного складу, 101,325 кПа | X7: Температура точки роси за вологою (Р = 3.92 МПа), ºС | Y7: Температура точки роси за вуглеводнями, ºС | Z7: Вміст сірководню, г/м3 | AA7: Вміст меркаптанової сірки, г/м3 | AB7: Вміст механічних домішок, г/м3
N8: Густина абсолютна, кг/м3,при 20 ºС, | O8: Температура вимірювання/згоряння при 20/25°С
B9: метан, С1 | C9: етан, С2 | D9: пропан, С3 | E9: ізо-бутан, і-С4 | F9: н-бутан, н-С4 | G9: нео-пентан, нео-С5 | H9: ізо-пентан, і-С5 | I9: н-пентан, н-С5 | J9: гексани та вищі, С6+ | K9: кисень, О2 | L9: азот, N2 | M9: діоксид вуглецю, CО2 | O9: Теплота згоряння нижча | R9: Теплота згоряння вища | U9: Число Воббе вище
O10: ккал/м3 | P10: МДж/м3 | Q10: кВт⋅год/м3 | R10: ккал/м3 | S10: МДж/м3 | T10: кВт⋅год/м3 | U10: ккал/м3 | V10: МДж/м3 | W10: кВт⋅год/м3
A11: 1 | O11: 8233 | P11: 34.47 | Q11: 9.58 | R11: 9119 | S11: 38.18 | T11: 10.61 | U11: 11550 | V11: 48.36 | W11: 13.43 | AC11: =SUM(B11:M11)+$K$42+$N$42 -> 0
A12: 2 | B12: =[1]Лист1!$D$73 -> 89.7491 | C12: =[1]Лист1!$D$74 -> 4.838 | D12: =[1]Лист1!$D$75 -> 1.1 | E12: =[1]Лист1!$D$76 -> 0.117 | F12: =[1]Лист1!$D$77 -> 0.188 | G12: =[1]Лист1!$D$78 -> 0.0039 | H12: =[1]Лист1!$D$79 -> 0.053 | I12: =[1]Лист1!$D$80 -> 0.044 | J12: =[1]Лист1!$D$81 -> 0.079 | K12: =[1]Лист1!$D$82 -> 0.031 | L12: =[1]Лист1!$D$83 -> 1.849 | M12: =[1]Лист1!$D$84 -> 1.948 | N12: =[1]Лист1!$F$90 -> 0.7517 | O12: =[1]Лист1!$F$92 -> 8223 | P12: =[1]Лист1!$F$91 -> 34.43 | Q12: =[1]Лист1!$F$97 -> 9.563888889 | R12: =[1]Лист1!$F$94 -> 9110 | S12: =[1]Лист1!$F$93 -> 38.14 | T12: =[1]Лист1!$F$98 -> 10.59444444 | U12: =[1]Лист1!$F$96 -> 11531 | V12: =[1]Лист1!$F$95 -> 48.28 | W12: =V12/3.6 -> 13.41111111 | X12: -12.4 | Y12: -9.8 | AC12: 100
A13: 3 | O13: =[1]Лист1!$F$92 -> 8223 | P13: =[1]Лист1!$F$91 -> 34.43 | Q13: =[1]Лист1!$F$97 -> 9.563888889 | R13: =[1]Лист1!$F$94 -> 9110 | S13: =[1]Лист1!$F$93 -> 38.14 | T13: =[1]Лист1!$F$98 -> 10.59444444 | U13: =[1]Лист1!$F$96 -> 11531 | V13: =[1]Лист1!$F$95 -> 48.28 | W13: =V13/3.6 -> 13.41111111 | AC13: 0 | AD13: =IF(AC13=100,"ОК"," ") -> 
A14: 4 | O14: =[1]Лист1!$F$92 -> 8223 | P14: =[1]Лист1!$F$91 -> 34.43 | Q14: =[1]Лист1!$F$97 -> 9.563888889 | R14: =[1]Лист1!$F$94 -> 9110 | S14: =[1]Лист1!$F$93 -> 38.14 | T14: =[1]Лист1!$F$98 -> 10.59444444 | U14: =[1]Лист1!$F$96 -> 11531 | V14: =[1]Лист1!$F$95 -> 48.28 | W14: 13.41111111 | AC14: 0 | AD14: =IF(AC14=100,"ОК"," ") -> 
A15: 5 | O15: =[1]Лист1!$F$92 -> 8223 | P15: =[1]Лист1!$F$91 -> 34.43 | Q15: =[1]Лист1!$F$97 -> 9.563888889 | R15: =[1]Лист1!$F$94 -> 9110 | S15: =[1]Лист1!$F$93 -> 38.14 | T15: =[1]Лист1!$F$98 -> 10.59444444 | U15: =[1]Лист1!$F$96 -> 11531 | V15: =[1]Лист1!$F$95 -> 48.28 | W15: 13.41111111 | AC15: 0
A16: 6 | O16: =[1]Лист1!$F$92 -> 8223 | P16: =[1]Лист1!$F$91 -> 34.43 | Q16: =[1]Лист1!$F$97 -> 9.563888889 | R16: =[1]Лист1!$F$94 -> 9110 | S16: =[1]Лист1!$F$93 -> 38.14 | T16: =[1]Лист1!$F$98 -> 10.59444444 | U16: =[1]Лист1!$F$96 -> 11531 | V16: =[1]Лист1!$F$95 -> 48.28 | W16: 13.41111111 | AC16: 0
A17: 7 | O17: =[1]Лист1!$F$92 -> 8223 | P17: =[1]Лист1!$F$91 -> 34.43 | Q17: =[1]Лист1!$F$97 -> 9.563888889 | R17: =[1]Лист1!$F$94 -> 9110 | S17: =[1]Лист1!$F$93 -> 38.14 | T17: =[1]Лист1!$F$98 -> 10.59444444 | U17: =[1]Лист1!$F$96 -> 11531 | V17: =[1]Лист1!$F$95 -> 48.28 | W17: 13.41111111 | AC17: 0
A18: 8 | O18: =[1]Лист1!$F$92 -> 8223 | P18: =[1]Лист1!$F$91 -> 34.43 | Q18: =[1]Лист1!$F$97 -> 9.563888889 | R18: =[1]Лист1!$F$94 -> 9110 | S18: =[1]Лист1!$F$93 -> 38.14 | T18: =[1]Лист1!$F$98 -> 10.59444444 | U18: =[1]Лист1!$F$96 -> 11531 | V18: =[1]Лист1!$F$95 -> 48.28 | W18: 13.41111111 | AC18: 0
A19: 9 | B19: =[2]Лист1!$D$73 -> 89.7181 | C19: =[2]Лист1!$D$74 -> 4.903 | D19: =[2]Лист1!$D$75 -> 1.154 | E19: =[2]Лист1!$D$76 -> 0.121 | F19: =[2]Лист1!$D$77 -> 0.195 | G19: =[2]Лист1!$D$78 -> 0.0039 | H19: =[2]Лист1!$D$79 -> 0.056 | I19: =[2]Лист1!$D$80 -> 0.045 | J19: =[2]Лист1!$D$81 -> 0.086 | K19: =[2]Лист1!$D$82 -> 0.009 | L19: =[2]Лист1!$D$83 -> 1.782 | M19: =[2]Лист1!$D$84 -> 1.927 | N19: =[2]Лист1!$F$90 -> 0.7525 | O19: =[2]Лист1!$F$92 -> 8250 | P19: =[2]Лист1!$F$91 -> 34.54 | Q19: =[2]Лист1!$F$97 -> 9.594444444 | R19: =[2]Лист1!$F$94 -> 9136 | S19: =[2]Лист1!$F$93 -> 38.25 | T19: =[2]Лист1!$F$98 -> 10.625 | U19: =[2]Лист1!$F$96 -> 11558 | V19: =[2]Лист1!$F$95 -> 48.39 | W19: =V19/3.6 -> 13.44166667 | X19: -9 | Y19: -10.7 | AC19: 100 | AD19: ОК
A20: 10 | O20: =[2]Лист1!$F$92 -> 8250 | P20: =[2]Лист1!$F$91 -> 34.54 | Q20: =[2]Лист1!$F$97 -> 9.594444444 | R20: =[2]Лист1!$F$94 -> 9136 | S20: =[2]Лист1!$F$93 -> 38.25 | T20: =[2]Лист1!$F$98 -> 10.625 | U20: =[2]Лист1!$F$96 -> 11558 | V20: =[2]Лист1!$F$95 -> 48.39 | W20: =V20/3.6 -> 13.44166667 | Z20: 0.0009 | AA20: < 0,0002 | AB20: відс. | AC20: 0
A21: 11 | O21: =[2]Лист1!$F$92 -> 8250 | P21: =[2]Лист1!$F$91 -> 34.54 | Q21: =[2]Лист1!$F$97 -> 9.594444444 | R21: =[2]Лист1!$F$94 -> 9136 | S21: =[2]Лист1!$F$93 -> 38.25 | T21: =[2]Лист1!$F$98 -> 10.625 | U21: =[2]Лист1!$F$96 -> 11558 | V21: =[2]Лист1!$F$95 -> 48.39 | W21: 13.44166667 | AC21: 0
A22: 12 | O22: =[2]Лист1!$F$92 -> 8250 | P22: =[2]Лист1!$F$91 -> 34.54 | Q22: =[2]Лист1!$F$97 -> 9.594444444 | R22: =[2]Лист1!$F$94 -> 9136 | S22: =[2]Лист1!$F$93 -> 38.25 | T22: =[2]Лист1!$F$98 -> 10.625 | U22: =[2]Лист1!$F$96 -> 11558 | V22: =[2]Лист1!$F$95 -> 48.39 | W22: 13.44166667 | AC22: 0
A23: 13 | O23: =[2]Лист1!$F$92 -> 8250 | P23: =[2]Лист1!$F$91 -> 34.54 | Q23: =[2]Лист1!$F$97 -> 9.594444444 | R23: =[2]Лист1!$F$94 -> 9136 | S23: =[2]Лист1!$F$93 -> 38.25 | T23: =[2]Лист1!$F$98 -> 10.625 | U23: =[2]Лист1!$F$96 -> 11558 | V23: =[2]Лист1!$F$95 -> 48.39 | W23: 13.44166667 | AC23: 0
A24: 14 | O24: =[2]Лист1!$F$92 -> 8250 | P24: =[2]Лист1!$F$91 -> 34.54 | Q24: =[2]Лист1!$F$97 -> 9.594444444 | R24: =[2]Лист1!$F$94 -> 9136 | S24: =[2]Лист1!$F$93 -> 38.25 | T24: =[2]Лист1!$F$98 -> 10.625 | U24: =[2]Лист1!$F$96 -> 11558 | V24: =[2]Лист1!$F$95 -> 48.39 | W24: 13.44166667 | AC24: 0
A25: 15 | B25: =[3]Лист1!$D$73 -> 89.873 | C25: =[3]Лист1!$D$74 -> 4.872 | D25: =[3]Лист1!$D$75 -> 1.07 | E25: =[3]Лист1!$D$76 -> 0.114 | F25: =[3]Лист1!$D$77 -> 0.18 | G25: =[3]Лист1!$D$78 -> 0.004 | H25: =[3]Лист1!$D$79 -> 0.051 | I25: =[3]Лист1!$D$80 -> 0.044 | J25: =[3]Лист1!$D$81 -> 0.067 | K25: =[3]Лист1!$D$82 -> 0.008 | L25: =[3]Лист1!$D$83 -> 1.753 | M25: =[3]Лист1!$D$84 -> 1.964 | N25: =[3]Лист1!$F$90 -> 0.7505 | O25: =[3]Лист1!$F$92 -> 8223 | P25: =[3]Лист1!$F$91 -> 34.43 | Q25: =[3]Лист1!$F$97 -> 9.563888889 | R25: =[3]Лист1!$F$94 -> 9110 | S25: =[3]Лист1!$F$93 -> 38.14 | T25: =[3]Лист1!$F$98 -> 10.59444444 | U25: =[3]Лист1!$F$96 -> 11541 | V25: =[3]Лист1!$F$95 -> 48.32 | W25: =V25/3.6 -> 13.42222222 | X25: -9.5 | Y25: -11.9 | AC25: 100 | AD25: ОК
A26: 16 | O26: =[3]Лист1!$F$92 -> 8223 | P26: =[3]Лист1!$F$91 -> 34.43 | Q26: =[3]Лист1!$F$97 -> 9.563888889 | R26: =[3]Лист1!$F$94 -> 9110 | S26: =[3]Лист1!$F$93 -> 38.14 | T26: =[3]Лист1!$F$98 -> 10.59444444 | U26: =[3]Лист1!$F$96 -> 11541 | V26: =[3]Лист1!$F$95 -> 48.32 | W26: =V26/3.6 -> 13.42222222 | AC26: 0
A27: 17 | O27: =[3]Лист1!$F$92 -> 8223 | P27: =[3]Лист1!$F$91 -> 34.43 | Q27: =[3]Лист1!$F$97 -> 9.563888889 | R27: =[3]Лист1!$F$94 -> 9110 | S27: =[3]Лист1!$F$93 -> 38.14 | T27: =[3]Лист1!$F$98 -> 10.59444444 | U27: =[3]Лист1!$F$96 -> 11541 | V27: =[3]Лист1!$F$95 -> 48.32 | W27: 13.42222222 | AC27: 0
A28: 18 | O28: =[3]Лист1!$F$92 -> 8223 | P28: =[3]Лист1!$F$91 -> 34.43 | Q28: =[3]Лист1!$F$97 -> 9.563888889 | R28: =[3]Лист1!$F$94 -> 9110 | S28: =[3]Лист1!$F$93 -> 38.14 | T28: =[3]Лист1!$F$98 -> 10.59444444 | U28: =[3]Лист1!$F$96 -> 11541 | V28: =[3]Лист1!$F$95 -> 48.32 | W28: 13.42222222 | AC28: 0
A29: 19 | O29: =[3]Лист1!$F$92 -> 8223 | P29: =[3]Лист1!$F$91 -> 34.43 | Q29: =[3]Лист1!$F$97 -> 9.563888889 | R29: =[3]Лист1!$F$94 -> 9110 | S29: =[3]Лист1!$F$93 -> 38.14 | T29: =[3]Лист1!$F$98 -> 10.59444444 | U29: =[3]Лист1!$F$96 -> 11541 | V29: =[3]Лист1!$F$95 -> 48.32 | W29: 13.42222222 | AC29: 0
A30: 20 | O30: =[3]Лист1!$F$92 -> 8223 | P30: =[3]Лист1!$F$91 -> 34.43 | Q30: =[3]Лист1!$F$97 -> 9.563888889 | R30: =[3]Лист1!$F$94 -> 9110 | S30: =[3]Лист1!$F$93 -> 38.14 | T30: =[3]Лист1!$F$98 -> 10.59444444 | U30: =[3]Лист1!$F$96 -> 11541 | V30: =[3]Лист1!$F$95 -> 48.32 | W30: 13.42222222 | AC30: 0 | AD30: =IF(AC30=100,"ОК"," ") -> 
A31: 21 | O31: =[3]Лист1!$F$92 -> 8223 | P31: =[3]Лист1!$F$91 -> 34.43 | Q31: =[3]Лист1!$F$97 -> 9.563888889 | R31: =[3]Лист1!$F$94 -> 9110 | S31: =[3]Лист1!$F$93 -> 38.14 | T31: =[3]Лист1!$F$98 -> 10.59444444 | U31: =[3]Лист1!$F$96 -> 11541 | V31: =[3]Лист1!$F$95 -> 48.32 | W31: 13.42222222 | AC31: 0
A32: 22 | B32: =[4]Лист1!$D$73 -> 89.71 | C32: =[4]Лист1!$D$74 -> 4.92 | D32: =[4]Лист1!$D$75 -> 1.11 | E32: =[4]Лист1!$D$76 -> 0.116 | F32: =[4]Лист1!$D$77 -> 0.186 | G32: =[4]Лист1!$D$78 -> 0.004 | H32: =[4]Лист1!$D$79 -> 0.052 | I32: =[4]Лист1!$D$80 -> 0.042 | J32: =[4]Лист1!$D$81 -> 0.072 | K32: =[4]Лист1!$D$82 -> 0.007 | L32: =[4]Лист1!$D$83 -> 1.742 | M32: =[4]Лист1!$D$84 -> 2.039 | N32: =[4]Лист1!$F$90 -> 0.7523 | O32: =[4]Лист1!$F$92 -> 8231 | P32: =[4]Лист1!$F$91 -> 34.46 | Q32: =[4]Лист1!$F$97 -> 9.572222222 | R32: =[4]Лист1!$F$94 -> 9117 | S32: =[4]Лист1!$F$93 -> 38.17 | T32: =[4]Лист1!$F$98 -> 10.60277778 | U32: =[4]Лист1!$F$96 -> 11534 | V32: =[4]Лист1!$F$95 -> 48.29 | W32: =V32/3.6 -> 13.41388889 | X32: -12.6 | Y32: -9.5 | AC32: 100 | AD32: ОК
A33: 23 | O33: =[4]Лист1!$F$92 -> 8231 | P33: =[4]Лист1!$F$91 -> 34.46 | Q33: =[4]Лист1!$F$97 -> 9.572222222 | R33: =[4]Лист1!$F$94 -> 9117 | S33: =[4]Лист1!$F$93 -> 38.17 | T33: =[4]Лист1!$F$98 -> 10.60277778 | U33: =[4]Лист1!$F$96 -> 11534 | V33: =[4]Лист1!$F$95 -> 48.29 | W33: =V33/3.6 -> 13.41388889 | AC33: 0 | AD33: =IF(AC33=100,"ОК"," ") -> 
A34: 24 | O34: =[4]Лист1!$F$92 -> 8231 | P34: =[4]Лист1!$F$91 -> 34.46 | Q34: =[4]Лист1!$F$97 -> 9.572222222 | R34: =[4]Лист1!$F$94 -> 9117 | S34: =[4]Лист1!$F$93 -> 38.17 | T34: =[4]Лист1!$F$98 -> 10.60277778 | U34: =[4]Лист1!$F$96 -> 11534 | V34: =[4]Лист1!$F$95 -> 48.29 | W34: 13.41388889 | AC34: 0
A35: 25 | O35: =[4]Лист1!$F$92 -> 8231 | P35: =[4]Лист1!$F$91 -> 34.46 | Q35: =[4]Лист1!$F$97 -> 9.572222222 | R35: =[4]Лист1!$F$94 -> 9117 | S35: =[4]Лист1!$F$93 -> 38.17 | T35: =[4]Лист1!$F$98 -> 10.60277778 | U35: =[4]Лист1!$F$96 -> 11534 | V35: =[4]Лист1!$F$95 -> 48.29 | W35: 13.41388889 | AC35: 0
A36: 26 | O36: =[4]Лист1!$F$92 -> 8231 | P36: =[4]Лист1!$F$91 -> 34.46 | Q36: =[4]Лист1!$F$97 -> 9.572222222 | R36: =[4]Лист1!$F$94 -> 9117 | S36: =[4]Лист1!$F$93 -> 38.17 | T36: =[4]Лист1!$F$98 -> 10.60277778 | U36: =[4]Лист1!$F$96 -> 11534 | V36: =[4]Лист1!$F$95 -> 48.29 | W36: 13.41388889 | AC36: 0
A37: 27 | O37: =[4]Лист1!$F$92 -> 8231 | P37: =[4]Лист1!$F$91 -> 34.46 | Q37: =[4]Лист1!$F$97 -> 9.572222222 | R37: =[4]Лист1!$F$94 -> 9117 | S37: =[4]Лист1!$F$93 -> 38.17 | T37: =[4]Лист1!$F$98 -> 10.60277778 | U37: =[4]Лист1!$F$96 -> 11534 | V37: =[4]Лист1!$F$95 -> 48.29 | W37: 13.41388889 | AC37: 0
A38: 28 | O38: =[4]Лист1!$F$92 -> 8231 | P38: =[4]Лист1!$F$91 -> 34.46 | Q38: =[4]Лист1!$F$97 -> 9.572222222 | R38: =[4]Лист1!$F$94 -> 9117 | S38: =[4]Лист1!$F$93 -> 38.17 | T38: =[4]Лист1!$F$98 -> 10.60277778 | U38: =[4]Лист1!$F$96 -> 11534 | V38: =[4]Лист1!$F$95 -> 48.29 | W38: 13.41388889 | AC38: 0
A39: 29 | B39: =[5]Лист1!$D$73 -> 89.5647 | C39: =[5]Лист1!$D$74 -> 4.879 | D39: =[5]Лист1!$D$75 -> 1.25 | E39: =[5]Лист1!$D$76 -> 0.134 | F39: =[5]Лист1!$D$77 -> 0.227 | G39: =[5]Лист1!$D$78 -> 0.0043 | H39: =[5]Лист1!$D$79 -> 0.064 | I39: =[5]Лист1!$D$80 -> 0.055 | J39: =[5]Лист1!$D$81 -> 0.096 | K39: =[5]Лист1!$D$82 -> 0.007 | L39: =[5]Лист1!$D$83 -> 1.757 | M39: =[5]Лист1!$D$84 -> 1.962 | N39: =[5]Лист1!$F$90 -> 0.7553 | O39: =[5]Лист1!$F$92 -> 8274 | P39: =[5]Лист1!$F$91 -> 34.64 | Q39: =[5]Лист1!$F$97 -> 9.622222222 | R39: =[5]Лист1!$F$94 -> 9165 | S39: =[5]Лист1!$F$93 -> 38.37 | T39: =[5]Лист1!$F$98 -> 10.65833333 | U39: =[5]Лист1!$F$96 -> 11572 | V39: =[5]Лист1!$F$95 -> 48.45 | W39: =V39/3.6 -> 13.45833333 | X39: -6.8 | Y39: -5.3 | AC39: 100 | AD39: ОК
A40: 30 | O40: =[5]Лист1!$F$92 -> 8274 | P40: =[5]Лист1!$F$91 -> 34.64 | Q40: =[5]Лист1!$F$97 -> 9.622222222 | R40: =[5]Лист1!$F$94 -> 9165 | S40: =[5]Лист1!$F$93 -> 38.37 | T40: =[5]Лист1!$F$98 -> 10.65833333 | U40: =[5]Лист1!$F$96 -> 11572 | V40: =[5]Лист1!$F$95 -> 48.45 | W40: =V40/3.6 -> 13.45833333 | AC40: 0
A41: 31 | O41: =[5]Лист1!$F$92 -> 8274 | P41: =[5]Лист1!$F$91 -> 34.64 | Q41: =[5]Лист1!$F$97 -> 9.622222222 | R41: =[5]Лист1!$F$94 -> 9165 | S41: =[5]Лист1!$F$93 -> 38.37 | T41: =[5]Лист1!$F$98 -> 10.65833333 | U41: =[5]Лист1!$F$96 -> 11572 | V41: =[5]Лист1!$F$95 -> 48.45 | W41: 13.45833333 | AC41: 0
A42: Рівень одоризації відповідає вимогам чинних нормативних документів | O42: 8236.035043 | P42: 34.48276417 | Q42: 9.578675258 | R42: 9122.829778 | S42: 38.19420707 | T42: 10.60961721
H43: Середньозважене значення теплоти згоряння:
B46: Головний інженер Лубенського ЛВУМГ Сирота В.П. 01.06.2017 року
C47: Підрозділу підприємства, якому підпорядкована лабораторія | O47: прізвище | R47: підпис | V47: дата
B48: Завідувач лабораторією Лубенського ЛВУМГ Алєксєєнко Н.А. 01.06.2017 року
C49: Лабораторія, де здійснювалось вимірювання газу | O49: прізвище | R49: підпис | V49: дата
B50: Начальник служби ГВ та М Шило О.Є. 01.06.2017 року
C51: Підрозділу, відповідального за облік газу за маршрутом | O51: прізвище | R51: підпис | V51: дата

Sheet розрахунок
A2: Додаток до Паспорту фізико-хімічних показників природного газу по маршруту № 51
A4: Число місяця | B4: Теплота згоряння вища, МДж/м3 | C4: Полтавська | J4: Загальний обсяг газу, м3
C5: Обсяг газу переданого за добу, м3
C6: ГРС Лубни | D6: АГНКС-1 м.Лубни | E6: АГНКС-2 м.Лубни | F6: ГРС Мгар | G6: ГРС Новаки | H6: ГРС Пирятин | I6: ГРС Гребінка
A7: 1 | B7: 38.18 | C7: 11330.1 | D7: 378 | E7: 1096 | F7: 13673 | G7: 5274.7 | H7: 20511.2 | I7: 8442.1 | J7: =SUM(C7:I7) -> 60705.1
A8: 2 | B8: =[1]Лист1!$F$93 -> 38.14 | C8: 9997.5 | D8: 452 | E8: 2513 | F8: 15981.7 | G8: 5118.6 | H8: 23185.7 | I8: 7771.5 | J8: 65020
A9: 3 | B9: =[1]Лист1!$F$93 -> 38.14 | C9: 9909.1 | D9: 779 | E9: 2587 | F9: 16515.3 | G9: 4830.4 | H9: 24458.4 | I9: 8261.9 | J9: 67341.1
A10: 4 | B10: =[1]Лист1!$F$93 -> 38.14 | C10: 10945.5 | D10: 737 | E10: 2469 | F10: 15765.3 | G10: 4921.3 | H10: 24325.6 | I10: 8322.5 | J10: 67486.2
A11: 5 | B11: =[1]Лист1!$F$93 -> 38.14 | C11: 12842.6 | D11: 925 | E11: 2602 | F11: 12766.4 | G11: 5310.5 | H11: 24700.8 | I11: 6884.3 | J11: 66031.6
A12: 6 | B12: =[1]Лист1!$F$93 -> 38.14 | C12: 11824 | D12: 427 | E12: 1545 | F12: 12234.8 | G12: 5090.6 | H12: 24992.2 | I12: 7862.7 | J12: 63976.3
A13: 7 | B13: =[1]Лист1!$F$93 -> 38.14 | C13: 11233.9 | D13: 299 | E13: 1704 | F13: 12075.9 | G13: 4655 | H13: 21057.4 | I13: 6544.3 | J13: 57569.5
A14: 8 | B14: =[1]Лист1!$F$93 -> 38.14 | C14: 10769.2 | D14: 375 | E14: 1538 | F14: 13326.1 | G14: 4840.1 | H14: 22934.7 | I14: 7725.4 | J14: 61508.5
A15: 9 | B15: =[2]Лист1!$F$93 -> 38.25 | C15: 13010.1 | D15: 444 | E15: 1769 | F15: 16324.1 | G15: 6029.2 | H15: 26841.1 | I15: 9609.7 | J15: 74027.2
A16: 10 | B16: =[2]Лист1!$F$93 -> 38.25 | C16: 21214.6 | D16: 835 | E16: 2742 | F16: 22769.2 | G16: 10320.1 | H16: 34027.2 | I16: 15401.6 | J16: 107309.7
A17: 11 | B17: =[2]Лист1!$F$93 -> 38.25 | C17: 20732.8 | D17: 931 | E17: 2336 | F17: 23800.3 | G17: 10462.9 | H17: 34694.4 | I17: 15342.3 | J17: 108299.7
A18: 12 | B18: =[2]Лист1!$F$93 -> 38.25 | C18: 26886.2 | D18: 955 | E18: 2583 | F18: 26230.6 | G18: 12156.1 | H18: 32589.8 | I18: 15278 | J18: 116678.7
A19: 13 | B19: =[2]Лист1!$F$93 -> 38.25 | C19: 31351.5 | D19: 902 | E19: 1960 | F19: 28296.4 | G19: 14314.1 | H19: 36978.3 | I19: 22066.2 | J19: 135868.5
A20: 14 | B20: =[2]Лист1!$F$93 -> 38.25 | C20: 29851.1 | D20: 381 | E20: 1543 | F20: 24122.9 | G20: 11790.2 | H20: 32744.6 | I20: 16539.9 | J20: 116972.7
A21: 15 | B21: =[3]Лист1!$F$93 -> 38.14 | C21: 22113.4 | D21: 854 | E21: 1713 | F21: 13680.8 | G21: 6482.8 | H21: 27593.8 | I21: 10893.7 | J21: 83331.5
A22: 16 | B22: =[3]Лист1!$F$93 -> 38.14 | C22: 18262.4 | D22: 710 | E22: 3244 | F22: 11378.7 | G22: 4956 | H22: 22244.6 | I22: 9069.6 | J22: 69865.3
A23: 17 | B23: =[3]Лист1!$F$93 -> 38.14 | C23: 10499.5 | D23: 720 | E23: 3047 | F23: 22273.5 | G23: 5861.5 | H23: 25670.8 | I23: 9920.6 | J23: 77992.9
A24: 18 | B24: =[3]Лист1!$F$93 -> 38.14 | C24: 15835.3 | D24: 944 | E24: 2678 | F24: 21676.1 | G24: 5676.9 | H24: 30551.8 | I24: 11444.7 | J24: 88806.8
A25: 19 | B25: =[3]Лист1!$F$93 -> 38.14 | C25: 17226.9 | D25: 630 | E25: 2918 | F25: 21345 | G25: 8314.8 | H25: 28251.2 | I25: 10098.4 | J25: 88784.3
A26: 20 | B26: =[3]Лист1!$F$93 -> 38.14 | C26: 14403.9 | D26: 358 | E26: 1871 | F26: 20061 | G26: 7587.2 | H26: 26963.8 | I26: 9814 | J26: 81058.9
A27: 21 | B27: =[3]Лист1!$F$93 -> 38.14 | C27: 16160.4 | D27: 381 | E27: 1460 | F27: 16254.5 | G27: 6682.2 | H27: 25777.5 | I27: 9432.5 | J27: 76148.1
A28: 22 | B28: =[4]Лист1!$F$93 -> 38.17 | C28: 11820.6 | D28: 721 | E28: 2137 | F28: 16655.5 | G28: 5362 | H28: 21950.6 | I28: 8191.3 | J28: 66838
A29: 23 | B29: =[4]Лист1!$F$93 -> 38.17 | C29: 11467.5 | D29: 847 | E29: 2670 | F29: 14053.2 | G29: 4676.6 | H29: 24810.5 | I29: 8347.9 | J29: 66872.7
A30: 24 | B30: =[4]Лист1!$F$93 -> 38.17 | C30: 13309.5 | D30: 724 | E30: 3094 | F30: 10585.7 | G30: 4488 | H30: 23626.6 | I30: 6509.7 | J30: 62337.5
A31: 25 | B31: =[4]Лист1!$F$93 -> 38.17 | C31: 9998 | D31: 699 | E31: 2754 | F31: 12537 | G31: 4203.9 | H31: 22710.1 | I31: 5585.9 | J31: 58487.9
A32: 26 | B32: =[4]Лист1!$F$93 -> 38.17 | C32: 18898.6 | D32: 601 | E32: 3776 | F32: 2320.9 | G32: 3930.9 | H32: 24890.8 | I32: 6880.6 | J32: 61298.8
A33: 27 | B33: =[4]Лист1!$F$93 -> 38.17 | C33: 23227.2 | D33: 351 | E33: 2481 | G33: 4568.3 | H33: 23097.5 | I33: 6959.4 | J33: 60684.4
A34: 28 | B34: =[4]Лист1!$F$93 -> 38.17 | C34: 23095.1 | D34: 405 | E34: 2336 | G34: 4337.6 | H34: 21721.2 | I34: 6647.1 | J34: 58542
A35: 29 | B35: =[5]Лист1!$F$93 -> 38.37 | C35: 21831.8 | D35: 961 | E35: 2702 | G35: 3652.5 | H35: 18643.8 | I35: 6807.8 | J35: 54598.9
A36: 30 | B36: =[5]Лист1!$F$93 -> 38.37 | C36: 22105.9 | D36: 907 | E36: 3598 | G36: 3701.1 | H36: 20707.7 | I36: 10200.4 | J36: 61220.1
A37: 31 | B37: =[5]Лист1!$F$93 -> 38.37 | C37: 20209.3 | D37: 505 | E37: 4006 | G37: 3561 | H37: 20193.4 | I37: 6103.1 | J37: 54577.8
A38: Загальний обсяг газу, м3 | C38: =SUM(C7:C37) -> 522363.5 | D38: =SUM(D7:D37) -> 20138 | E38: 75472 | F38: =SUM(F7:F37) -> 436703.9 | G38: 193157.1 | H38: 793447.1 | I38: =SUM(I7:I37) -> 298959.1 | J38: =SUM(J7:J37) -> 2340240.7
A39: Енергія, МДж | C39: =SUMPRODUCT(B7:B37,C7:C37) -> 19957240.49 | D39: =SUMPRODUCT(B7:B37,D7:D37) -> 769243.95 | E39: =SUMPRODUCT(B7:B37,E7:E37) -> 2882916.37 | F39: =SUMPRODUCT(B7:B37,F7:F37) -> 16673688.02 | G39: =SUMPRODUCT(B7:B37,G7:G37) -> 7377838.145 | H39: =SUMPRODUCT(B7:B37,H7:H37) -> 30303238.68 | I39: =SUMPRODUCT(B7:B37,I7:I37) -> 11419793.16 | J39: =SUMPRODUCT(B7:B37,J7:J37) -> 89383958.82
A40: Теплота згоряння (середньозважене значення за місяць), МДж/м³ | C40: 38.20565658 | D40: 38.18073039 | E40: 38.19848911 | F40: 38.1807628 | G40: 38.19604946 | H40: 38.19188284 | I40: 38.19851331 | J40: 38.19420707
A41: Теплота згоряння (середньозважене значення за місяць), ккал/м³ | C41: 9125.264431 | D41: 9119.310912 | E41: 9123.55251 | F41: 9119.318654 | G41: 9122.96981 | H41: 9121.974629 | I41: 9123.558291 | J41: 9122.529761
A42: Теплота згоряння (середньозважене значення за місяць), кВт*год./м³ | C42: 10.61268238 | D42: 10.60575844 | E42: 10.61069142 | F42: 10.60576744 | G42: 10.61001374 | H42: 10.60885634 | I42: 10.61069814 | J42: 10.60950196

Sheet додаток
A2: Додаток до Паспорту фізико-хімічних показників природного газу № 51
A4: Область | B4: ГРС, прямий споживач | C4: Cередньозважене значення вищої теплоти згоряння
C5: МДж/м³ | D5: ккал/м³ | E5: кВт*год./м³
A6: Полтавська область | B6: ГРС Лубни | C6: 38.20565658 | D6: 9125.264431 | E6: 10.61268238
B7: АГНКС-1 м.Лубни | C7: 38.18073039 | D7: 9119.310912 | E7: 10.60575844
B8: АГНКС-2 м.Лубни | C8: 38.19848911 | D8: 9123.55251 | E8: 10.61069142
B9: ГРС Мгар | C9: 38.1807628 | D9: 9119.318654 | E9: 10.60576744
B10: ГРС Новаки | C10: 38.19604946 | D10: 9122.96981 | E10: 10.61001374
B11: ГРС Пирятин | C11: 38.19188284 | D11: 9121.974629 | E11: 10.60885634
B12: ГРС Гребінка | C12: 38.19851331 | D12: 9123.558291 | E12: 10.61069814
A13: Середньозважене значення вищої теплоти згоряння по маршруту № 51 | C13: 38.19420707 | D13: 9122.529761 | E13: 10.60950196
A17: Головний інженер Лубенського ЛВУМГ Сирота В.П. | F17: 01.06.2017 р.
A18: Підрозділу підприємства, якому підпорядкована лабораторія | D18: прізвище | E18: підпис | F18: дата
A19: Завідувач лабораторією Лубенського ЛВУМГ Алєксєєнко Н.А. | F19: =F17 -> 01.06.2017 р.
A20: Лабораторія, де здійснювалось вимірювання газу | D20: прізвище | E20: підпис | F20: дата
A21: Начальник служби ГВ та М Шило О.Є | F21: =F17 -> 01.06.2017 р.
A22: Підрозділу, відповідального за облік газу за маршрутом | D22: прізвище | E22: підпис | F22: дата

Sheet variablesList (hidden)
A1: 3 | B1: x:\gaysin | C1: 10, 11, 24, 25, 127, 128, 132, 180, 207, 215 | D1: x:\
B2: x:\Illinci
B3: x:\Talne
